[Event "IV Copa Marcel Duchamp 2020"]
[Site "Montevideo"]
[Date "2020.02.11"]
[Round "5.23"]
[White "Urrestarazu, Diego"]
[Black "Escofet, Jaime"]
[Result "1/2-1/2"]
[ECO "A89"]
[WhiteElo "1837"]
[BlackElo "2025"]
[Annotator "NA RC"]
[PlyCount "36"]
[EventDate "2020.02.08"]
[EventType "swiss"]
[EventCountry "URU"]
[SourceTitle "playchess.com"]
[Source "ChessBase"]
[SourceQuality "1"]
[TimeControl "5400+30"]

{[%evp 8,36,31,22,36,17,34,30,39,6,27,0,-18,-16,-7,-65,-60,-65,-9,-24,-23,-14,-12,-8,8,-11,0,-6,-5,-26,0]} 1. c4 {[%emt 0:02:30]} g6 {[%emt 0:01:10]} 2. Nc3 {[%emt 0:00:21]} Bg7 {[%emt 0:00:09]} 3. d4 {[%emt 0:00:21]} f5 {[%emt 0:00:47]} 4. g3 {[%emt 0:01:57]} Nf6 {[%emt 0:00:13]} 5. Bg2 {[%emt 0:00:07]} O-O {[%emt 0:00:10]} 6. Nf3 {[%emt 0:00:59]} d6 {[%emt 0:00:27]} 7. O-O {[%emt 0:00:32]} Nc6 {[%emt 0:00:29]} 8. Rb1 {[%emt 0:14:20]} (8. d5 $5 {[%cal Rd5c6]} Na5 9. Qd3 $11) 8... Ne4 {[%emt 0:10:44]} 9. Nd5 {[%emt 0:06:27]} (9. d5 $5 {[%cal Rd5c6]} Nxc3 10. bxc3 $11) 9... e6 {[%emt 0:02:28]} 10. Nf4 {[%emt 0:01:12]} Qe8 {[%emt 0:08:24]} 11. Nxe6 {[%emt 0:08:06]} (11. d5 $11 Nd8 12. Nd2) 11... Bxe6 {[%emt 0:00:25]} 12. d5 {[%emt 0:00:03]} Bd7 {[%emt 0:00:25]} 13. dxc6 {[%emt 0:00:05]} Bxc6 {[%emt 0:02:10]} 14. Be3 {[%emt 0:03:36]} Qe7 {[%emt 0:02:00]} 15. Bd4 {[%emt 0:02:02]} Nf6 {[%emt 0:03:38]} 16. e3 {[%emt 0:01:58]} a5 {[%emt 0:06:15]} 17. Qd2 {[%emt 0:03:04]} b6 {[%emt 0:00:39]} 18. Rfd1 {[%emt 0:03:44]} Rfe8 $11 {[%emt 0:02:03]} 1/2-1/2

[Event "IV Copa Marcel Duchamp 2020"]
[Site "Montevideo"]
[Date "2020.02.11"]
[Round "5.24"]
[White "Larrea, Daniela"]
[Black "Brizzi, Milagros Tatiana"]
[Result "0-1"]
[ECO "D47"]
[WhiteElo "1757"]
[BlackElo "2022"]
[Annotator "NA RC"]
[PlyCount "46"]
[EventDate "2020.02.08"]
[EventType "swiss"]
[EventCountry "URU"]
[SourceTitle "playchess.com"]
[Source "ChessBase"]
[SourceQuality "1"]
[TimeControl "5400+30"]

{[%evp 8,46,27,15,17,25,10,16,32767,32767,32767,32767,32767,32767,-6,-58,-33,-14,-4,-89,-88,-123,-67,-114,-87,-119,-117,-145,-133,-152,-130,-133,-125,-313,-97,-97,-79,-156,-130,-1570,-1679]} 1. d4 {[%emt 0:04:36]} d5 {[%emt 0:00:00]} 2. c4 {[%emt 0:00:06]} c6 {[%emt 0:00:00]} 3. Nf3 {[%emt 0:00:14]} Nf6 {[%emt 0:00:02]} 4. Nc3 {[%emt 0:00:07]} e6 {[%emt 0:00:36]} 5. e3 {[%emt 0:00:34]} Nbd7 {[%emt 0:00:34]} 6. Bd3 {[%emt 0:01:09]} dxc4 {[%emt 0:03:20]} 7. Bxc4 {[%emt 0:00:13]} b5 {[%emt 0:00:20]} 8. Bd3 {[%emt 0:01:02]} Bb7 {[%emt 0:00:16]} 9. O-O {[%emt 0:01:16]} a6 {[%emt 0:00:18]} 10. Qc2 {[%emt 0:02:59] D48: Semi-Slav: Meran System: 7...b5 8 Bd3 a6.} c5 {[%emt 0:03:37]} 11. Ne4 {[%emt 0:04:29]} Rc8 {[%emt 0:04:36]} (11... c4 $5 {[%cal Rc4d3]} 12. Nxf6+ Nxf6 $15) 12. dxc5 {[%emt 0:05:56]} Nxc5 {[%emt 0:03:13] [#]} 13. Nxf6+ $146 {[%emt 0:05:23]} ({Predecessor:} 13. Nxc5 $11 Bxc5 (13... Rxc5 14. Qe2 Bxf3 15. gxf3 Bd6 16. e4 Qb8 17. Be3 Rh5 18. a4 Bxh2+ 19. Kg2 {0-1 (26) Granero Roca,A (2385)-Handke,F (2496) ICC INT 2009}) 14. Qe2) 13... Qxf6 {[%emt 0:01:51]} 14. Be2 {[%emt 0:05:23]} Ne4 {[%emt 0:20:41]} 15. Qd1 {[%emt 0:09:21]} Bc5 {[%emt 0:02:48]} 16. Nd2 {[%emt 0:08:28]} Nxd2 {[%emt 0:05:40]} 17. Qxd2 {[%emt 0:01:20] [#]} O-O $1 {[%emt 0:02:43]} 18. Rd1 {[%emt 0:05:13]} Rfd8 {[%emt 0:12:59]} 19. Qe1 {[%emt 0:00:17]} Bd6 {[%emt 0:01:56]} 20. Bd3 $2 {[%emt 0:14:57] [#]} (20. Bd2 $17 {is a better defense.}) 20... Be5 $2 {[%emt 0:03:14]} (20... Bxh2+ $1 $19 {[%mdl 512] and Black stays clearly on top.} 21. Kxh2 Qh4+ 22. Kg1 {[#]} Qg4 $1 {[%mdl 512]}) 21. Qe2 {[%emt 0:01:09]} Bc7 {[%emt 0:14:04]} 22. Qg4 {[%emt 0:11:02]} (22. a4 $15) 22... Qe5 {[%emt 0:02:39]} 23. Qg3 $2 {[%emt 0:04:05] [#]} (23. g3 $17) 23... Qh5 $19 {[%emt 0:00:49]} 0-1

[Event "IV Copa Marcel Duchamp 2020"]
[Site "Montevideo"]
[Date "2020.02.11"]
[Round "5.25"]
[White "Meskanen, Vesa"]
[Black "Osinaga, Eduardo"]
[Result "1-0"]
[ECO "B23"]
[WhiteElo "2019"]
[BlackElo "1697"]
[Annotator "NA RC"]
[PlyCount "75"]
[EventDate "2020.02.08"]
[EventType "swiss"]
[EventCountry "URU"]
[SourceTitle "playchess.com"]
[Source "ChessBase"]
[SourceQuality "1"]
[TimeControl "5400+30"]

{[%evp 9,72,7,94,32767,32767,3,6,-21,-6,-26,14,6,16,-39,-28,-39,30,33,35,34,25,12,8,0,65,-50,-35,-52,-52,-49,-33,-27,-29,-54,-47,-70,63,63,57,84,144,168,166,100,248,144,240,169,180,172,357,396,358,422,441,478,710,945,742,660,664,884,2064,1487,6478]} 1. e4 {[%emt 0:12:10]} c5 {[%emt 0:00:00]} 2. Nc3 {[%emt 0:01:24]} d6 {[%emt 0:00:33]} 3. g3 {[%emt 0:00:26]} g6 {[%emt 0:00:27]} 4. Bg2 {[%emt 0:00:14]} Bg7 {[%emt 0:00:11]} 5. Nge2 {[%emt 0:00:46]} e6 {[%emt 0:00:50]} (5... Nf6 $11) 6. O-O {[%emt 0:00:20]} Ne7 {[%emt 0:00:14]} 7. d3 {[%emt 0:01:17]} O-O {[%emt 0:00:18]} 8. f4 {[%emt 0:01:15]} Nbc6 {[%emt 0:00:37]} 9. Be3 {[%emt 0:01:08] The main line 9.Be3 scores better than 9.g4.} a6 {[%emt 0:01:08] B25: Closed Sicilian: 3 g3, lines without early Be3.} 10. g4 {[%emt 0:08:08]} f5 {[%emt 0:04:51] [#]} 11. h3 $146 {[%emt 0:01:47]} ({White should play Predecessor:} 11. exf5 $11 gxf5 12. Ng3 (12. g5 b5 13. Qe1 Rb8 14. h4 Nd4 15. Bxd4 cxd4 16. Nd1 Qc7 17. Rc1 {0-1 (49) Birol,E (1429)-Cakir,I (1594) Konya 2016})) 11... b5 {[%emt 0:04:36]} 12. a3 {[%emt 0:04:33]} b4 {[%emt 0:05:52]} (12... Qc7 $142) 13. axb4 {[%emt 0:00:20]} cxb4 {[%emt 0:00:20]} 14. Na4 {[%emt 0:00:31]} Rb8 {[%emt 0:02:43]} 15. Qe1 {[%emt 0:05:41]} Bd7 {[%emt 0:01:33]} 16. Qf2 {[%emt 0:02:05]} Nc8 {[%emt 0:01:13]} (16... b3 $11) 17. d4 {[%emt 0:07:10]} ({Better is} 17. gxf5 $14 exf5 18. e5) 17... fxe4 {[%emt 0:03:47]} 18. Bxe4 {[%emt 0:00:42]} N6e7 {[%emt 0:02:13]} 19. Qg2 {[%emt 0:05:24]} Nb6 {[%emt 0:02:52]} 20. Nxb6 {[%emt 0:02:25]} Qxb6 {[%emt 0:03:56]} 21. c3 {[%emt 0:06:44]} Bb5 {[%emt 0:05:37]} 22. Rfe1 {[%emt 0:01:33]} Bxe2 {[%emt 0:03:38]} ({Better is} 22... Bc4 $17) 23. Qxe2 {[%emt 0:02:18]} bxc3 {[%emt 0:03:55]} 24. bxc3 {[%emt 0:04:43]} d5 {[%emt 0:01:00]} 25. Rxa6 {[%emt 0:05:50]} Qc7 {[%emt 0:03:40]} 26. Bg2 {[%emt 0:00:57]} Rb6 {[%emt 0:00:11]} (26... Qxc3 $16 27. Rxe6 Nc6) 27. Bd2 {[%emt 0:02:13]} Kf7 {[%emt 0:02:00]} (27... Rfb8 $16 28. Bf1 Rxa6 29. Qxa6 Rb6) 28. h4 {[%emt 0:06:14]} Qd6 {[%emt 0:00:22]} 29. Ra7 {[%emt 0:00:30]} Kg8 $2 {[%emt 0:02:09]} (29... Qb8 {might work better.} 30. Rea1 Rb1+ 31. Rxb1 Qxa7) 30. Bc1 {[%emt 0:02:16]} Nc8 {[%emt 0:05:48]} 31. Ba3 {[%emt 0:04:39] Skewer} Qb8 {[%emt 0:01:49]} 32. Rd7 {[%emt 0:01:27]} Rf7 {[%emt 0:05:21]} (32... Re8 $142 33. f5 Rc6 34. fxe6 Kh8) 33. Rxf7 {[%emt 0:01:15]} Kxf7 {[%emt 0:00:10] [#]} 34. f5 $1 {[%emt 0:00:26]} gxf5 {[%emt 0:04:17]} 35. gxf5 {[%emt 0:00:27]} Ne7 {[%emt 0:03:32]} 36. Qh5+ $18 {[%emt 0:01:03]} (36. fxe6+ $142 Kg8 37. Bxe7) 36... Kf8 {[%emt 0:01:16]} 37. fxe6 {[%emt 0:00:34]} Qe8 {[%emt 0:00:16]} 38. Rf1+ {[%emt 0:00:12]} 1-0

[Event "IV Copa Marcel Duchamp 2020"]
[Site "Montevideo"]
[Date "2020.02.11"]
[Round "5.26"]
[White "Manteiga, Franco"]
[Black "Gaye, Gustavo"]
[Result "1/2-1/2"]
[ECO "A43"]
[WhiteElo "1703"]
[BlackElo "2001"]
[Annotator "NA RC"]
[PlyCount "60"]
[EventDate "2020.02.08"]
[EventType "swiss"]
[EventCountry "URU"]
[SourceTitle "playchess.com"]
[Source "ChessBase"]
[SourceQuality "1"]
[TimeControl "5400+30"]

{[%evp 11,59,51,32767,32767,32767,32767,32767,32767,32767,60,42,51,57,47,32767,34,41,41,54,27,90,22,75,55,61,-65,-83,-164,-48,-66,-8,0,21,13,96,0,0,0,0,-118,91,91,181,171,431,123,123,150,585,56]} 1. d4 {[%emt 0:00:00]} c5 {[%emt 0:00:04]} 2. d5 {[%emt 0:00:00]} d6 {[%emt 0:00:06]} 3. c4 {[%emt 0:00:03]} g6 {[%emt 0:00:05]} 4. Nc3 {[%emt 0:00:10]} Bg7 {[%emt 0:00:06]} 5. e4 {[%emt 0:00:22]} Nf6 {[%emt 0:00:08]} 6. Nge2 {[%emt 0:00:14]} O-O {[%emt 0:00:19]} 7. Ng3 {[%emt 0:00:08]} e6 {[%emt 0:00:53]} 8. Be2 {[%emt 0:00:40]} exd5 {[%emt 0:00:18]} 9. cxd5 {[%emt 0:00:22]} Na6 {[%emt 0:01:12]} 10. O-O {[%emt 0:02:24] A65: Modern Benoni: 6 e4.} Nc7 {[%emt 0:00:12]} 11. Bg5 {[%emt 0:06:43]} h6 {[%emt 0:00:44]} 12. Be3 {[%emt 0:01:19]} Re8 {[%emt 0:01:10]} 13. a4 {[%emt 0:02:38]} b6 {[%emt 0:03:21]} 14. Qd2 {[%emt 0:02:10]} Kh7 {[%emt 0:00:14]} 15. f3 {[%emt 0:15:16]} Rb8 {[%emt 0:02:08] [#]} 16. Bb5 $146 {[%emt 0:12:15]} (16. Bf4 $16) ({Predecessor:} 16. f4 a6 17. e5 Ng8 18. Nge4 dxe5 19. d6 Ne6 20. fxe5 Rf8 21. Nf6+ Nxf6 22. exf6 Bxf6 23. Rxf6 Qxf6 {½-½ (54) Simonetto,A (2173)-Colombo,R (2100) Alessandria 2018}) 16... Bd7 {[%emt 0:04:17]} 17. Qd3 {[%emt 0:01:12]} Re7 {[%emt 0:10:39]} 18. f4 {[%emt 0:13:30]} (18. Rfc1 $14) 18... Ng4 {[%emt 0:04:08]} 19. e5 {[%emt 0:07:34]} (19. Bxd7 $17 Nxe3 20. Bc6) 19... Bxb5 {[%emt 0:02:34]} (19... Nxb5 $17 20. axb5 f5 21. Rxa7 dxe5) 20. axb5 {[%emt 0:00:58]} Nxe3 {[%emt 0:00:12]} 21. Qxe3 {[%emt 0:04:31]} dxe5 {[%emt 0:01:23]} 22. f5 $1 {[%emt 0:00:42]} Ne8 {[%emt 0:01:25]} (22... Rd7 $1 $14) 23. Nce4 {[%emt 0:04:11]} ({White should play} 23. Nge4 $16 Reb7 24. Qd3) 23... Rd7 $1 {[%emt 0:01:14]} 24. fxg6+ {[%emt 0:02:59]} fxg6 {[%emt 0:00:52]} 25. d6 {[%emt 0:02:32]} (25. Qb3 $11 {remains equal.}) 25... Rbb7 $2 {[%emt 0:05:28]} (25... Nxd6 $17 {keeps the pressure on.} 26. Nxd6 Rxd6 27. Rxa7 Rd7 28. Rxd7 Qxd7) 26. Qf3 {[%emt 0:01:19]} Qb8 {[%emt 0:12:47]} (26... a6 $16 {was worth a try.}) 27. Rad1 {[%emt 0:01:47]} Rd8 $2 {[%emt 0:08:04]} (27... Qd8 28. Ne2 c4) 28. Rd5 $2 {[%emt 0:06:02]} (28. h4 $18 {is the precise move to win.} Qc8 29. h5) 28... Rbd7 {[%emt 0:02:17]} 29. Rfd1 {[%emt 0:03:27]} Qa8 $2 {[%emt 0:07:48]} (29... Nxd6 $16 {is tougher.} 30. Qg4 c4) 30. Qd3 $14 {[%emt 0:01:32]} (30. h4 $18) 30... Qb8 {[%emt 0:15:36]} 1/2-1/2

[Event "IV Copa Marcel Duchamp 2020"]
[Site "Montevideo"]
[Date "2020.02.11"]
[Round "5.27"]
[White "Campora, Edgardo"]
[Black "Montanu, Dan-Vladimir"]
[Result "0-1"]
[ECO "B50"]
[WhiteElo "1676"]
[BlackElo "1983"]
[Annotator "NA RC"]
[PlyCount "102"]
[EventDate "2020.02.08"]
[EventType "swiss"]
[EventCountry "URU"]
[SourceTitle "playchess.com"]
[Source "ChessBase"]
[SourceQuality "1"]
[TimeControl "5400+30"]

{[%evp 14,102,16,9,18,8,24,10,34,29,28,16,62,50,60,48,92,81,78,77,73,67,64,49,32767,32767,32767,32767,32767,177,181,138,166,143,181,182,199,224,208,213,221,232,224,208,238,247,292,322,404,335,365,389,413,275,254,284,288,295,266,305,333,388,389,416,788,32767,32767,32767,32767,591,533,32767,670,32767,32767,32767,32767,754,635,106,330,32767,32767,32767,32767,32767,32767,-706,-844,-789,-797]} 1. e4 {[%emt 0:00:00]} c5 {[%emt 0:00:00]} 2. Nf3 {[%emt 0:00:00]} d6 {[%emt 0:00:00]} 3. c3 {[%emt 0:00:00]} Nf6 {[%emt 0:00:48]} 4. h3 {[%emt 0:02:40]} Nc6 {[%emt 0:00:41]} 5. Bd3 {[%emt 0:00:05]} g6 {[%emt 0:00:35]} 6. Bc2 {[%emt 0:00:06]} Bg7 {[%emt 0:00:08] B50: Sicilian: 2...d6, Miscellaneous.} 7. a3 {[%emt 0:00:12]} Bd7 {[%emt 0:03:38]} 8. d4 {[%emt 0:00:55]} cxd4 {[%emt 0:00:18]} 9. cxd4 {[%emt 0:00:07]} O-O {[%emt 0:01:52] [#]} 10. Nc3 $146 {[%emt 0:00:36]} ({Predecessor:} 10. O-O Rc8 11. Nc3 a6 12. Be3 b5 13. Qd2 Qc7 14. Bh6 Na5 15. Bxg7 Kxg7 16. e5 {0-1 (45) Aleshko,M (1219)-Grochowski,M (1781) Poznan 2018}) 10... Rc8 {[%emt 0:02:36]} 11. Be3 {[%emt 0:04:24]} Na5 {[%emt 0:02:30]} 12. Nd2 {[%emt 0:09:10]} Nc4 {[%emt 0:10:30]} (12... Qb6 $11 13. Rb1 Qa6) 13. Nxc4 {[%emt 0:01:17]} Rxc4 {[%emt 0:00:10]} 14. Qe2 {[%emt 0:00:49]} Qc8 {[%emt 0:01:43]} 15. O-O a6 {[%emt 0:16:40]} 16. Bd3 {[%emt 0:21:48]} Rc7 {[%emt 0:19:05]} 17. e5 {[%emt 0:01:14]} dxe5 {[%emt 0:04:12]} 18. dxe5 {[%emt 0:03:01]} Ne8 {[%emt 0:03:05]} 19. Nd5 Bc6 {[%emt 0:00:23]} 20. Nxc7 {[%emt 0:00:57]} Nxc7 {[%emt 0:02:18]} 21. f4 {[%emt 0:10:59]} Nd5 22. Bc5 {[%emt 0:06:14]} Rd8 {[%emt 0:00:53]} 23. Rac1 {[%emt 0:02:49]} e6 {[%emt 0:00:33]} 24. Be4 {[%emt 0:05:27]} Bf8 {[%emt 0:02:17]} 25. Bxf8 {[%emt 0:06:24]} Kxf8 {[%emt 0:00:11]} 26. Bxd5 {[%emt 0:04:40]} Rxd5 {[%emt 0:04:07]} 27. Rfd1 {[%emt 0:00:19]} Qd8 {[%emt 0:02:39]} 28. Qe1 Qb6+ {[%emt 0:04:56]} 29. Qf2 {[%emt 0:08:48]} Qb3 {[%emt 0:01:19]} 30. Rxd5 {[%emt 0:01:26]} exd5 {[%emt 0:12:42]} (30... Qxd5 $142 31. Qc5+ Qxc5+ 32. Rxc5 h5) 31. Rc3 {[%emt 0:05:37]} Qd1+ {[%emt 0:00:38]} 32. Kh2 Qb1 {[%emt 0:07:51]} 33. Qc5+ {[%emt 0:07:55]} Ke8 {[%emt 0:01:31]} 34. b4 {[%emt 0:00:32]} ({Don't do} 34. Qd6 Qe4 $18) 34... Qe4 {[%emt 0:01:39]} 35. Qe3 {[%emt 0:01:09]} Qf5 {[%emt 0:01:19]} 36. g4 {[%emt 0:02:52]} Qd7 {[%emt 0:01:34]} 37. Qd4 {[%emt 0:00:29]} Qe6 {[%emt 0:03:12]} 38. Rf3 {[%emt 0:00:59]} Bd7 {[%emt 0:02:37]} (38... Qe7 $142 39. f5 Kd8) 39. f5 {[%emt 0:02:39]} gxf5 {[%emt 0:00:09]} 40. gxf5 {[%emt 0:00:04]} Qc6 {[%emt 0:00:11]} 41. Rc3 {[%emt 0:00:56]} Qb5 {[%emt 0:05:07]} 42. Qg4 {[%emt 0:00:48]} Qf1 $2 {[%emt 0:02:19]} (42... Bxf5 43. Qg8+ (43. Qxf5 Qe2+ 44. Kh1 Qe1+ 45. Kg2 Qxc3 $11) 43... Ke7) 43. Qg8+ {[%emt 0:01:35]} Ke7 {[%emt 0:00:08]} 44. f6+ {[%emt 0:00:10]} Ke6 {[%emt 0:00:12]} 45. Qg4+ {[%emt 0:00:53]} Qf5 {[%emt 0:01:08]} 46. Qe2 $2 {[%emt 0:00:03]} (46. Rc7 $18 Qxg4 47. hxg4) 46... Qxe5+ $2 {[%emt 0:01:23]} (46... Bc6 $16) 47. Qxe5+ {[%emt 0:00:15]} Kxe5 {[%emt 0:00:08]} 48. Rc7 {[%emt 0:00:20]} Be6 {[%emt 0:00:10]} 49. Rxb7 {[%emt 0:00:11]} d4 {[%emt 0:00:16]} 50. Rc7 $4 {[%emt 0:00:36]} (50. Kg3 $18) 50... d3 $19 {[%emt 0:00:53]} 51. Rc1 {[%emt 0:00:36]} Bb3 {[%emt 0:00:28]} 0-1

[Event "IV Copa Marcel Duchamp 2020"]
[Site "Montevideo"]
[Date "2020.02.11"]
[Round "5.28"]
[White "Rodriguez Farias, Eduardo"]
[Black "Munoz Rozas, Diego"]
[Result "1/2-1/2"]
[ECO "B50"]
[WhiteElo "1963"]
[BlackElo "1685"]
[Annotator "NA RC"]
[PlyCount "126"]
[EventDate "2020.02.08"]
[EventType "swiss"]
[EventCountry "URU"]
[SourceTitle "playchess.com"]
[Source "ChessBase"]
[SourceQuality "1"]
[TimeControl "5400+30"]

{[%evp 16,126,25,32767,32767,32767,32,47,37,32,33,32767,32767,32767,32767,18,79,32767,32767,32767,32767,116,110,4,11,0,0,0,0,5,0,-65,46,-22,35,0,237,261,261,164,174,69,305,314,320,328,354,290,353,0,11,0,0,5,203,4,198,32767,32767,32767,-243,-496,-420,-393,-333,-5073,-809,-616,-522,-749,-860,-744,-1248,-1000,-6,32767,32767,32767,32767,360,200,32767,32767,32767,32767,32767,32767,32767,76,0,32767,32767,32767,32767,32767,32767,32767,32767,0,0,0,32767,32767,32767,32767,0,0,32767,32767,32767,32767,0,0]} 1. e4 {[%emt 0:13:00]} c5 {[%emt 0:00:00]} 2. Nf3 {[%emt 0:00:13]} d6 {[%emt 0:00:04]} 3. c3 {[%emt 0:00:05]} Nf6 {[%emt 0:00:07]} 4. Be2 {[%emt 0:00:02]} g6 {[%emt 0:00:46]} 5. O-O {[%emt 0:00:08]} Bg7 {[%emt 0:00:05]} 6. Re1 {[%emt 0:00:12]} O-O {[%emt 0:00:09]} 7. Bf1 {[%emt 0:00:04]} Nc6 {[%emt 0:00:11]} 8. h3 {[%emt 0:00:53]} b6 {[%emt 0:00:28]} 9. d4 {B50: Sicilian: 2...d6, Miscellaneous.} cxd4 {[%emt 0:00:14]} 10. cxd4 {[%emt 0:01:42]} e6 {[%emt 0:00:47]} 11. Nc3 {[%emt 0:00:17]} Bb7 {[%emt 0:00:06] [#]} 12. Bg5 $146 {[%emt 0:01:33]} ({Predecessor:} 12. Be3 Rc8 13. Rc1 a6 14. Qe2 b5 15. a3 Na5 16. Nd2 Nc4 17. Nxc4 Rxc4 18. f3 {1-0 (36) Beres,L (2074)-Capak,S (1934) Slovakia 2019}) 12... h6 {[%emt 0:00:06]} 13. Bh4 {[%emt 0:02:38]} g5 {[%emt 0:00:05]} 14. Bg3 {[%emt 0:00:10]} a6 {[%emt 0:00:04]} 15. Bh2 {[%emt 0:11:36]} g4 {[%emt 0:32:05]} (15... b5 $11 {remains equal.}) 16. hxg4 {[%emt 0:01:21]} Nxg4 {[%emt 0:00:06]} 17. Bg3 {[%emt 0:00:08]} e5 {[%emt 0:00:06]} 18. Nh4 {[%emt 0:12:15]} Qg5 {[%emt 0:16:09]} 19. Nf5 {[%emt 0:03:46]} (19. dxe5 $16 Bxe5 20. Nf5) 19... Nxd4 {[%emt 0:02:57]} 20. Bh4 {[%emt 0:27:59]} Qf4 {[%emt 0:05:47]} 21. Bg3 {[%emt 0:02:27]} Qg5 {[%emt 0:00:58]} 22. Nxd6 {[%emt 0:00:33]} Bc6 {[%emt 0:02:10]} 23. Be2 {[%emt 0:03:08]} ({White should play} 23. Qc1 $11) 23... f5 {[%emt 0:18:38]} (23... Rad8 $17 24. Nc4 b5) 24. Nxf5 {[%emt 0:06:50]} (24. Bxg4 $14 f4 25. Bh2) 24... Nxf5 {[%emt 0:02:02]} (24... Nxf2 $5 25. Kxf2 Nxf5 26. exf5 Rad8 27. Qb3+ {[%mdl 64] Double Attack} Kh7 $11) 25. exf5 {[%emt 0:00:45]} Rad8 $2 {[%emt 0:03:01]} 26. Qb3+ {[%emt 0:01:45] Double Attack} Kh8 {[%emt 0:00:25]} 27. Bxg4 {[%emt 0:00:44]} Qxg4 {[%emt 0:00:07]} 28. Qe6 {[%emt 0:04:04]} (28. Qxb6 $18 Ba8 29. Qxa6) 28... Bxg2 $2 {[%emt 0:04:22]} (28... Rf6 $16 {was necessary.} 29. Qxe5 Rd2) 29. Kxg2 Rxf5 30. Kg1 {[%emt 0:05:26]} Rdf8 {[%emt 0:01:24]} 31. Re2 {[%emt 0:02:19]} ({Not} 31. Qxb6 Rf3 $18) 31... h5 {[%emt 0:01:23]} 32. Qc6 $2 {[%emt 0:01:09]} ({Not} 32. Qxb6 h4 $11 {[%mdl 64] Pin}) (32. Re4 $18 Qf3 33. Qxb6) 32... h4 {[%emt 0:01:05] Pin} 33. Qe4 {[%emt 0:00:41]} Rf4 {[%emt 0:01:04]} 34. Qh1 {[%emt 0:00:30]} Bf6 $2 {[%emt 0:04:56] [#]} (34... Kg8 $11 35. Re3 hxg3 36. Rxg3 Qd7) 35. Re4 $2 {[%emt 0:02:24]} (35. Re3 $1 $18) 35... Rg8 $2 {[%emt 0:05:26]} (35... Bg5 $11 {and Black has nothing to worry.}) 36. Rxf4 exf4 {[%emt 0:00:45]} 37. Qg2 {[%emt 0:00:53]} hxg3 $2 {[%emt 0:02:00]} (37... Bd4 38. Ne4 fxg3 39. Nxg3 Qd7) 38. f3 $2 {[%emt 0:00:35]} (38. Qh1+ Kg7 39. Qb7+ Kg6 40. Qe4+ Kh6 41. Qh1+ Kg7 42. Qb7+ Kh6 43. Qh1+ Kg7) 38... Bd4+ {[%emt 0:00:25]} 39. Kf1 {[%emt 0:00:01]} Qe6 {[%emt 0:01:04]} 40. Ne4 $2 {[%emt 0:00:17]} (40. Rd1 Re8 41. Qc2) 40... Kg7 {[%emt 0:00:42]} (40... Qc4+ $142 41. Ke1 {[#]} Bf2+ $1 {[%mdl 512]} 42. Nxf2 gxf2+ 43. Qxf2 Re8+ 44. Kd2 Qd5+ 45. Kc1 Rc8+ 46. Qc2 Rxc2+ 47. Kxc2 Qxf3) 41. Rc1 {[%emt 0:01:08]} Rc8 {[%emt 0:01:13]} 42. Rd1 {[%emt 0:00:36]} Qc4+ {[%emt 0:00:52]} 43. Ke1 {[%emt 0:00:33]} Qb4+ {[%emt 0:01:17]} 44. Kf1 {[%emt 0:00:29]} Rh8 $2 {[%emt 0:00:47]} ({Black should play} 44... Qb5+ $19 45. Ke1 {[#]} Bf2+ $1 {[%mdl 512]} 46. Nxf2 Rc2 $1 {[%mdl 576] Double Attack, Pin}) 45. Nxg3 {[%emt 0:00:16]} fxg3 {[%emt 0:00:29]} 46. Qxg3+ {[%emt 0:00:01]} Kf7 {[%emt 0:00:40]} 47. Qf4+ {Double Attack} Kg6 48. Qg4+ {[%emt 0:01:35]} Kf7 {[%emt 0:00:42]} 49. Qf4+ {[%emt 0:00:00]} Kg6 50. Qe4+ Kf7 {[%emt 0:00:15]} 51. Qxd4 {[%emt 0:01:24]} Qb5+ {[%emt 0:01:41]} 52. Qd3 {[%emt 0:00:34]} (52. Rd3 $14 Rc8 53. Ke1 Qa5+ 54. Rd2 Rc1+ 55. Kf2) 52... Rh1+ 53. Kg2 {[%emt 0:00:01]} Rxd1 {[%emt 0:01:03]} 54. Qxd1 Qxb2+ 55. Kg3 {[%emt 0:00:44]} Qg7+ {[%emt 0:01:07]} 56. Kf2 {[%emt 0:00:12]} Qb2+ {[%emt 0:00:06]} 57. Kg3 {[%emt 0:00:01]} Qg7+ {[%emt 0:00:09]} 58. Kh3 {[%emt 0:01:18]} Qh6+ {[%emt 0:00:17]} 59. Kg2 Qg5+ {[%emt 0:00:19]} 60. Kf2 {[%emt 0:00:52]} Qh4+ {[%emt 0:00:00]} 61. Ke2 {[%emt 0:01:08]} Qh2+ {[%emt 0:00:00]} 62. Ke3 {[%emt 0:00:00]} Qe5+ {[%emt 0:00:19]} 63. Kf2 {[%emt 0:00:36]} Qh2+ $11 {[%emt 0:00:09]} 1/2-1/2

[Event "IV Copa Marcel Duchamp 2020"]
[Site "Montevideo"]
[Date "2020.02.11"]
[Round "5.29"]
[White "Durante, Aurelio"]
[Black "Bon, Charles"]
[Result "1-0"]
[ECO "A05"]
[WhiteElo "1955"]
[BlackElo "1614"]
[Annotator "NA RC"]
[PlyCount "41"]
[EventDate "2020.02.08"]
[EventType "swiss"]
[EventCountry "URU"]
[SourceTitle "playchess.com"]
[Source "ChessBase"]
[SourceQuality "1"]
[TimeControl "5400+30"]

{[%evp 8,37,26,23,30,16,17,17,16,21,32767,13,77,77,153,161,172,134,131,140,218,112,114,127,386,402,415,431,416,443,521,537]} 1. Nf3 {[%emt 0:00:46]} Nf6 {[%emt 0:00:01]} 2. g3 {[%emt 0:00:54]} g6 {[%emt 0:00:39]} 3. Bg2 {[%emt 0:00:08]} Bg7 {[%emt 0:00:07]} 4. O-O {[%emt 0:00:06]} d6 {[%emt 0:00:31]} 5. d4 {[%emt 0:00:31]} O-O {[%emt 0:00:41]} 6. Re1 {[%emt 0:00:20]} Nbd7 {[%emt 0:05:54]} 7. e4 {[%emt 0:00:22]} e5 {[%emt 0:01:11]} 8. d5 {[%emt 0:01:50] A49: 1 d4 Nf6 2 Nf3 g6 3 g3: Anti-King's Indian systems.} Ne8 {[%emt 0:07:26]} 9. c4 {[%emt 0:00:26] [#]} Ndf6 $146 {[%emt 0:01:14]} ({Predecessor:} 9... f5 $11 {remains equal.} 10. Nc3 f4 11. b4 g5 12. Qd3 Qf6 13. g4 Qg6 14. Kf1 h5 15. h3 hxg4 16. hxg4 {0-1 (66) Sounov,B (2016)-Galaev,A (1691) Uljanovsk 2009}) 10. Nc3 {[%emt 0:00:33]} c6 {[%emt 0:02:16] [#]} (10... Nd7 $142) 11. dxc6 $1 {[%emt 0:02:16]} Nc7 {[%emt 0:04:52]} 12. cxb7 {[%emt 0:00:30]} Bxb7 {[%emt 0:00:14]} 13. b3 {[%emt 0:02:27]} Rb8 {[%emt 0:05:57]} (13... Ne6 $16 {was worth a try.} 14. Rb1 Nc5) 14. Nd5 {[%emt 0:01:37]} ({Better is} 14. Ba3 $18) 14... Ncxd5 {[%emt 0:00:46]} 15. cxd5 {[%emt 0:00:38]} Nxd5 $2 {[%emt 0:04:33]} (15... Ba6 $16 16. Bh3 Bb5) 16. exd5 {[%emt 0:00:55]} e4 {[%emt 0:00:27]} 17. Nd4 {[%emt 0:00:21]} Bxd5 {[%emt 0:04:31]} 18. Bxe4 {[%emt 0:00:30]} Re8 {[%emt 0:02:38]} 19. Bxd5 $18 {[%emt 0:00:56]} Rxe1+ {[%emt 0:03:03]} 20. Qxe1 {[%emt 0:00:03]} Bxd4 {[%emt 0:00:24]} 21. Bh6 {[%emt 0:00:42]} 1-0